[Event "Nordic Chess-ch 2019"]
[Site "Sarpsborg"]
[Date "2019.06.26"]
[Round "8.34"]
[White "Andersen, Harry"]
[Black "Rukovci, Shemsi"]
[Result "*"]
[ECO "C54"]
[WhiteElo "1905"]
[BlackElo "1907"]
[Annotator "NA RC"]
[PlyCount "52"]
[EventDate "2019.06.21"]
[EventType "swiss"]
[EventCountry "NOR"]
[SourceTitle "playchess.com"]
[Source "ChessBase"]
[SourceQuality "1"]
[TimeControl "40/5400+30:1800+30"]

1. e4 {[%emt 0:00:27]} e5 {[%emt 0:00:00]} 2. Nf3 {[%emt 0:00:37]} Nc6 {[%emt 0:01:19]} 3. Bc4 {[%emt 0:02:27]} Bc5 {[%emt 0:00:31]} 4. O-O {[%emt 0:01:20]} Nf6 {[%emt 0:00:11]} 5. d3 {[%emt 0:00:31]} h6 {[%emt 0:03:03]} 6. c3 {[%emt 0:00:55]} Be7 {[%emt 0:08:33]} 7. d4 {[%emt 0:07:33]} d6 {[%emt 0:02:06]} 8. d5 {[%emt 0:15:39]} Nb8 {[%emt 0:00:35]} 9. Bd3 {[%emt 0:01:03]} Nbd7 {[%emt 0:02:32]} 10. b4 {[%emt 0:01:46]} Nf8 {[%emt 0:00:01]} 11. h3 {[%emt 0:05:24]} g5 {[%emt 0:02:32]} 12. Bb5+ {[%emt 0:02:06]} Bd7 {[%emt 0:03:59]} 13. Bxd7+ {[%emt 0:00:15]} Qxd7 {[%emt 0:00:08]} 14. Nbd2 {[%emt 0:04:57]} Ng6 {[%emt 0:00:14]} 15. Nh2 {[%emt 0:02:41]} Nf4 {[%emt 0:00:18]} 16. Ng4 {[%emt 0:00:34]} h5 {[%emt 0:06:00]} 17. Ne3 {[%emt 0:09:12]} O-O-O {[%emt 0:08:57]} 18. Nf5 {[%emt 0:01:06]} Rdg8 {[%emt 0:00:47]} 19. c4 {[%emt 0:00:33]} h4 {[%emt 0:00:30]} 20. f3 {[%emt 0:02:13]} N6h5 {[%emt 0:05:40]} 21. Bb2 {[%emt 0:07:01]} Ng3 {[%emt 0:02:17]} 22. Nxe7+ {[%emt 0:03:54]} Qxe7 {[%emt 0:04:01]} 23. c5 {[%emt 0:03:58]} dxc5 {[%emt 0:10:55]} 24. Qa4 {[%emt 0:03:46]} Kb8 {[%emt 0:07:40]} 25. Nc4 {[%emt 0:01:31]} Nd3 {[%emt 0:09:15]} 26. Na5 {[%emt 0:00:00]} cxb4 {[%emt 0:00:00]} *

[Event "Nordic Chess-ch 2019"]
[Site "Sarpsborg"]
[Date "2019.06.26"]
[Round "8.35"]
[White "Hauge, Tor Arne"]
[Black "Lunde, Sigmund"]
[Result "*"]
[ECO "A01"]
[WhiteElo "2022"]
[BlackElo "1834"]
[Annotator "NA RC"]
[PlyCount "57"]
[EventDate "2019.06.21"]
[EventType "swiss"]
[EventCountry "NOR"]
[SourceTitle "playchess.com"]
[Source "ChessBase"]
[SourceQuality "1"]
[TimeControl "40/5400+30:1800+30"]

1. b3 {[%emt 0:01:08]} e5 {[%emt 0:04:50]} 2. Bb2 {[%emt 0:00:35]} Nc6 {[%emt 0:00:51]} 3. g3 {[%emt 0:01:22]} f5 {[%emt 0:10:51]} 4. Nf3 {[%emt 0:31:54]} d6 {[%emt 0:04:17]} 5. Bg2 {[%emt 0:06:05]} Nf6 {[%emt 0:04:11]} 6. e3 {[%emt 0:01:37]} Be7 {[%emt 0:02:47]} 7. d3 {[%emt 0:02:57]} h6 {[%emt 0:05:30]} 8. Nbd2 {[%emt 0:11:34]} g5 {[%emt 0:03:40]} 9. h3 {[%emt 0:09:40]} Be6 {[%emt 0:02:30]} 10. Qe2 {[%emt 0:05:26]} Qd7 {[%emt 0:16:56]} 11. O-O-O {[%emt 0:04:51]} a5 {[%emt 0:01:32]} 12. e4 {[%emt 0:02:13]} a4 {[%emt 0:02:04]} 13. d4 {[%emt 0:00:51]} fxe4 {[%emt 0:03:03]} 14. Nxe4 {[%emt 0:04:41]} Nxe4 {[%emt 0:07:54]} 15. Qxe4 {[%emt 0:01:52]} d5 {[%emt 0:01:03]} 16. Qe2 {[%emt 0:01:27]} e4 {[%emt 0:02:48]} 17. Ne5 {[%emt 0:00:20]} Nxe5 {[%emt 0:00:07]} 18. dxe5 {[%emt 0:00:06]} axb3 {[%emt 0:03:28]} 19. axb3 {[%emt 0:00:11]} Qc6 {[%emt 0:02:00]} 20. f3 {[%emt 0:01:43]} Bb4 {[%emt 0:05:36]} 21. fxe4 {[%emt 0:04:47]} d4 {[%emt 0:04:59]} 22. Rxd4 {[%emt 0:01:27]} Qc5 {[%emt 0:00:15]} 23. Rf1 {[%emt 0:02:29]} Bc3 {[%emt 0:00:34]} 24. Bxc3 {[%emt 0:01:17]} Qxc3 {[%emt 0:00:02]} 25. Ra4 {[%emt 0:00:05]} Rxa4 {[%emt 0:01:53]} 26. Qb5+ {[%emt 0:02:22]} Bd7 {[%emt 0:00:28]} 27. bxa4 {[%emt 0:00:00]} Bxb5 {[%emt 0:00:13]} 28. axb5 {[%emt 0:00:00]} Qxg3 {[%emt 0:01:14]} 29. Bf3 {[%emt 0:00:10]} *

[Event "Nordic Chess-ch 2019"]
[Site "Sarpsborg"]
[Date "2019.06.26"]
[Round "8.36"]
[White "Eriksen, Oddvar"]
[Black "Kirppo, Ronny"]
[Result "0-1"]
[ECO "B56"]
[WhiteElo "1520"]
[BlackElo "1910"]
[Annotator "NA RC"]
[PlyCount "52"]
[EventDate "2019.06.21"]
[EventType "swiss"]
[EventCountry "NOR"]
[SourceTitle "playchess.com"]
[Source "ChessBase"]
[SourceQuality "1"]
[TimeControl "40/5400+30:1800+30"]

1. e4 {[%emt 0:00:00]} c5 {[%emt 0:00:00]} 2. Nf3 {[%emt 0:00:13]} Nc6 {[%emt 0:00:00]} 3. Nc3 {[%emt 0:00:57]} d6 {[%emt 0:00:00]} 4. d4 {[%emt 0:01:15]} cxd4 {[%emt 0:00:06]} 5. Nxd4 {[%emt 1:30:05]} Nf6 {[%emt 1:32:24]} 6. Nxc6 {[%emt 0:00:30]} bxc6 {[%emt 0:00:30]} 7. Be2 {[%emt 0:00:00]} Qc7 {[%emt 0:00:00]} 8. Bf3 {[%emt 0:00:00]} Rb8 {[%emt 0:00:00]} 9. O-O {[%emt 0:00:00]} g6 {[%emt 0:00:00]} 10. b3 {[%emt 0:02:00]} Bg7 {[%emt 0:02:00]} 11. Bb2 {[%emt 0:00:00]} O-O {[%emt 0:00:00]} 12. Rb1 {[%emt 0:00:00]} Rd8 {[%emt 0:00:00]} 13. Re1 {[%emt 0:00:00]} e5 {[%emt 0:00:00]} 14. Bc1 {[%emt 0:00:00]} h6 {[%emt 0:00:00]} 15. h3 {[%emt 0:00:00]} Be6 {[%emt 0:00:00]} 16. Na4 {[%emt 0:00:00]} d5 {[%emt 0:00:00]} 17. exd5 {[%emt 0:03:30]} cxd5 {[%emt 0:03:30]} 18. Bg4 {[%emt 0:00:00]} Nxg4 {[%emt 0:00:00]} 19. hxg4 {[%emt 0:00:00]} d4 {[%emt 0:00:00]} 20. g3 {[%emt 0:00:00]} Rbc8 {[%emt 0:00:00]} 21. Ba3 {[%emt 0:00:00]} Qxc2 {[%emt 0:00:00]} 22. Rb2 {[%emt 0:00:00]} Qxd1 {[%emt 0:00:00]} 23. Rxd1 {[%emt 0:03:00]} Bxg4 {[%emt 0:03:00]} 24. Re1 {[%emt 0:00:00]} h5 {[%emt 0:00:00]} 25. Kg2 {[%emt 0:00:00]} Bf5 {[%emt 0:00:00]} 26. f3 {[%emt 0:00:00]} Bc2 {[%emt 0:00:00]} 0-1

[Event "Nordic Chess-ch 2019"]
[Site "Sarpsborg"]
[Date "2019.06.26"]
[Round "8.37"]
[White "Bergquist, Rune"]
[Black "Andersen, Dag"]
[Result "*"]
[ECO "A56"]
[WhiteElo "1609"]
[BlackElo "1817"]
[Annotator "NA RC"]
[PlyCount "98"]
[EventDate "2019.06.21"]
[EventType "swiss"]
[EventCountry "NOR"]
[SourceTitle "playchess.com"]
[Source "ChessBase"]
[SourceQuality "1"]
[TimeControl "40/5400+30:1800+30"]

1. d4 {[%emt 0:00:00]} Nf6 {[%emt 0:00:00]} 2. c4 {[%emt 0:00:00]} c5 {[%emt 0:00:00]} 3. d5 {[%emt 0:00:20]} e5 {[%emt 0:00:18]} 4. Nc3 {[%emt 0:04:00]} d6 {[%emt 0:00:25]} 5. e4 {[%emt 0:01:01]} Nbd7 {[%emt 0:00:11]} 6. Nf3 {[%emt 0:03:57]} Be7 {[%emt 0:00:09]} 7. Be2 {[%emt 0:01:18]} h5 {[%emt 0:01:07]} 8. h3 {[%emt 0:02:44]} Nf8 {[%emt 0:00:12]} 9. Qc2 {[%emt 0:04:07]} Ng6 {[%emt 0:00:10]} 10. Bd2 {[%emt 0:06:14]} a6 {[%emt 0:06:15]} 11. Qa4+ {[%emt 0:03:47]} Bd7 {[%emt 0:00:24]} 12. Qb3 {[%emt 0:00:16]} Rb8 {[%emt 0:00:47]} 13. O-O {[%emt 0:06:59]} h4 {[%emt 0:01:52]} 14. Nh2 {[%emt 0:03:01]} Nh5 {[%emt 0:03:53]} 15. Bg4 {[%emt 0:00:58]} Nhf4 {[%emt 0:03:28]} 16. Bxd7+ {[%emt 0:03:06]} Qxd7 {[%emt 0:00:59]} 17. Nf3 {[%emt 0:04:49]} O-O {[%emt 0:01:08]} 18. Rfe1 {[%emt 0:04:20]} b5 {[%emt 0:00:14]} 19. cxb5 {[%emt 0:01:05]} axb5 {[%emt 0:00:15]} 20. Ne2 {[%emt 0:02:46]} c4 {[%emt 0:01:35]} 21. Qc2 {[%emt 0:03:50]} Nd3 {[%emt 0:00:21]} 22. Red1 {[%emt 0:01:59]} f5 {[%emt 0:02:23]} 23. exf5 {[%emt 0:02:57]} Rxf5 {[%emt 0:00:40]} 24. Be3 {[%emt 0:02:41]} Rxf3 {[%emt 0:00:15]} 25. gxf3 {[%emt 0:02:55]} Qxh3 {[%emt 0:00:10]} 26. Rxd3 {[%emt 0:03:46]} cxd3 {[%emt 0:00:15]} 27. Qxd3 {[%emt 0:01:01]} e4 {[%emt 0:03:09]} 28. Qxe4 {[%emt 0:02:21]} Ne5 {[%emt 0:01:02]} 29. Nd4 {[%emt 0:01:24]} Rf8 {[%emt 0:02:46]} 30. f4 {[%emt 0:01:03]} Ng4 {[%emt 0:15:43]} 31. Qg2 {[%emt 0:01:51]} Qxg2+ {[%emt 0:00:06]} 32. Kxg2 {[%emt 0:00:20]} Nf6 {[%emt 0:00:51]} 33. Rc1 {[%emt 0:01:38]} b4 {[%emt 0:03:48]} 34. Nc6 {[%emt 0:02:29]} Nxd5 {[%emt 0:01:00]} 35. Nxe7+ {[%emt 0:02:46]} Nxe7 {[%emt 0:00:06]} 36. Rc4 {[%emt 0:04:26]} Ra8 {[%emt 0:02:07]} 37. Rxb4 {[%emt 0:00:56]} Nd5 {[%emt 0:02:20]} 38. Rd4 {[%emt 0:02:52]} Nxe3+ {[%emt 0:00:13]} 39. fxe3 {[%emt 0:00:15]} Rxa2 {[%emt 0:00:09]} 40. Rd2 {[%emt 0:02:08]} Ra6 {[%emt 0:01:43]} 41. Kh3 {[%emt 0:30:32]} Rb6 {[%emt 0:30:13]} 42. Kxh4 {[%emt 0:00:57]} Kf7 {[%emt 0:00:05]} 43. Kg4 {[%emt 0:02:11]} Kf6 {[%emt 0:00:31]} 44. e4 {[%emt 0:00:42]} Ke6 {[%emt 0:01:18]} 45. Kg5 {[%emt 0:01:41]} Rb3 {[%emt 0:01:14]} 46. f5+ {[%emt 0:01:06]} Ke5 {[%emt 0:00:16]} 47. Kg6 {[%emt 0:04:35]} Kxe4 {[%emt 0:01:27]} 48. Rxd6 {[%emt 0:01:44]} Rg3+ {[%emt 0:01:05]} 49. Kf7 {[%emt 0:01:51]} Kxf5 {[%emt 0:00:10]} *

[Event "Nordic Chess-ch 2019"]
[Site "Sarpsborg"]
[Date "2019.06.26"]
[Round "8.38"]
[White "Mirza, Raad"]
[Black "Stabbetorp, Hans"]
[Result "*"]
[ECO "B01"]
[WhiteElo "1991"]
[BlackElo "1767"]
[Annotator "NA RC"]
[PlyCount "120"]
[EventDate "2019.06.21"]
[EventType "swiss"]
[EventCountry "NOR"]
[SourceTitle "playchess.com"]
[Source "ChessBase"]
[SourceQuality "1"]
[TimeControl "40/5400+30:1800+30"]

1. e4 {[%emt 0:00:00]} d5 {[%emt 0:00:00]} 2. exd5 {[%emt 0:00:00]} Qxd5 {[%emt 0:00:00]} 3. Nf3 {[%emt 0:00:03]} Nf6 {[%emt 0:00:00]} 4. d4 {[%emt 0:00:22]} Bf5 {[%emt 0:00:05]} 5. c4 {[%emt 0:03:50]} Qd8 {[%emt 0:05:13]} 6. Qb3 {[%emt 0:03:42]} b6 {[%emt 0:01:32]} 7. Be3 {[%emt 0:00:38]} g6 {[%emt 0:03:08]} 8. c5 {[%emt 0:01:23]} Be6 {[%emt 0:02:10]} 9. Qa4+ {[%emt 0:08:00]} Bd7 {[%emt 0:01:59]} 10. Qb3 {[%emt 0:01:36]} Be6 {[%emt 0:01:55]} 11. Bb5+ {[%emt 0:03:47]} c6 {[%emt 0:01:04]} 12. Bc4 {[%emt 0:00:02]} Bxc4 {[%emt 0:03:14]} 13. Qxc4 {[%emt 0:00:02]} Qd5 {[%emt 0:01:46]} 14. Qe2 {[%emt 0:01:24]} Bg7 {[%emt 0:00:22]} 15. Nc3 {[%emt 0:00:20]} Qf5 {[%emt 0:03:40]} 16. O-O {[%emt 0:03:54]} O-O {[%emt 0:00:28]} 17. Ne5 {[%emt 0:02:09]} bxc5 {[%emt 0:02:53]} 18. Qc4 {[%emt 0:03:42]} cxd4 {[%emt 0:02:14]} 19. Bxd4 {[%emt 0:00:04]} Nfd7 {[%emt 0:02:29]} 20. Nxc6 {[%emt 0:02:33]} Nxc6 {[%emt 0:02:41]} 21. Bxg7 {[%emt 0:00:16]} Na5 {[%emt 0:02:13]} 22. Qd4 {[%emt 0:07:10]} Nc6 {[%emt 0:10:58]} 23. Qa4 {[%emt 0:04:00]} Kxg7 {[%emt 0:01:04]} 24. Qxc6 {[%emt 0:00:07]} Rfc8 {[%emt 0:00:55]} 25. Qb7 {[%emt 0:02:25]} Rcb8 {[%emt 0:07:47]} 26. Qc6 {[%emt 0:00:27]} Ne5 {[%emt 0:01:15]} 27. Qd5 {[%emt 0:03:39]} e6 {[%emt 0:01:29]} 28. Qd2 {[%emt 0:00:46]} Rd8 {[%emt 0:03:04]} 29. Qe2 {[%emt 0:00:43]} Rd7 {[%emt 0:04:07]} 30. Ne4 {[%emt 0:05:25]} Nc6 {[%emt 0:07:39]} 31. f3 {[%emt 0:01:40]} Rad8 {[%emt 0:01:50]} 32. Qc4 {[%emt 0:00:58]} Ne7 {[%emt 0:02:52]} 33. Qc3+ {[%emt 0:00:51]} Rd4 {[%emt 0:03:25]} 34. Rad1 {[%emt 0:02:29]} Qd5 {[%emt 0:02:39]} 35. Rd2 {[%emt 0:02:01]} e5 {[%emt 0:02:39]} 36. Rfd1 {[%emt 0:00:24]} f5 {[%emt 0:02:29]} 37. Rxd4 {[%emt 0:11:01]} exd4 {[%emt 0:01:22]} 38. Qa3 {[%emt 0:01:53]} Qe5 {[%emt 0:02:08]} 39. Nf2 {[%emt 0:01:58]} Nc6 {[%emt 0:04:11]} 40. Nd3 {[%emt 0:02:27]} Qd6 {[%emt 0:04:58]} 41. Qa4 {[%emt 0:35:33]} Rd7 {[%emt 0:04:51]} 42. Rc1 {[%emt 0:00:00]} Nd8 {[%emt 0:03:48]} 43. Kf2 {[%emt 0:00:00]} Re7 {[%emt 0:03:03]} 44. g3 {[%emt 0:00:00]} Nf7 {[%emt 0:02:01]} 45. Rc6 {[%emt 0:00:00]} Qd7 {[%emt 0:02:12]} 46. Nc5 {[%emt 0:00:00]} Qd5 {[%emt 0:01:53]} 47. Nd3 {[%emt 0:00:58]} Ne5 {[%emt 0:01:52]} 48. Nxe5 {[%emt 0:00:53]} Qxe5 {[%emt 0:00:17]} 49. Qc4 {[%emt 0:02:02]} Qe3+ {[%emt 0:03:04]} 50. Kg2 {[%emt 0:00:20]} d3 {[%emt 0:01:48]} 51. Rd6 {[%emt 0:03:19]} Qd2+ {[%emt 0:04:47]} 52. Kh3 {[%emt 0:00:36]} Qh6+ {[%emt 0:02:05]} 53. Qh4 {[%emt 0:00:02]} Qe3 {[%emt 0:00:27]} 54. Rxd3 {[%emt 0:00:29]} Qe2 {[%emt 0:01:30]} 55. Qd4+ {[%emt 0:01:27]} Kh6 {[%emt 0:02:22]} 56. Qf4+ {[%emt 0:01:15]} Kg7 {[%emt 0:01:16]} 57. Rd2 {[%emt 0:00:25]} Qf1+ {[%emt 0:01:03]} 58. Kh4 {[%emt 0:00:21]} h6 {[%emt 0:01:51]} 59. Qd4+ {[%emt 0:00:01]} Kh7 {[%emt 0:00:36]} 60. Qf6 {[%emt 0:00:36]} g5+ {[%emt 0:03:17]} *

[Event "Nordic Chess-ch 2019"]
[Site "Sarpsborg"]
[Date "2019.06.26"]
[Round "8.39"]
[White "Thorvlaksson, Baldvin"]
[Black "Larsen, Bjorn"]
[Result "*"]
[ECO "C27"]
[WhiteElo "1523"]
[BlackElo "1680"]
[Annotator "NA RC"]
[PlyCount "83"]
[EventDate "2019.06.21"]
[EventType "swiss"]
[EventCountry "NOR"]
[SourceTitle "playchess.com"]
[Source "ChessBase"]
[SourceQuality "1"]
[TimeControl "40/5400+30:1800+30"]

1. e4 {[%emt 0:00:00]} e5 {[%emt 0:00:00]} 2. Nc3 {[%emt 0:00:00]} Bc5 {[%emt 0:02:02]} 3. Bc4 {[%emt 0:00:00]} Nf6 {[%emt 0:01:26]} 4. d3 {[%emt 0:02:23]} h6 {[%emt 0:04:19]} 5. Nge2 {[%emt 0:02:33]} d6 {[%emt 0:01:24]} 6. O-O {[%emt 0:00:29]} c6 {[%emt 0:01:55]} 7. a3 {[%emt 0:03:20]} O-O {[%emt 0:02:39]} 8. Ba2 {[%emt 0:01:59]} b5 {[%emt 0:02:08]} 9. Be3 {[%emt 0:08:02]} Bb6 {[%emt 0:08:54]} 10. Ng3 {[%emt 0:07:09]} Ng4 {[%emt 0:23:54]} 11. Qf3 {[%emt 0:08:32]} Qf6 {[%emt 0:11:39]} 12. Nf5 {[%emt 0:14:25]} Nxe3 {[%emt 0:04:12]} 13. fxe3 {[%emt 0:00:22]} Bxf5 {[%emt 0:02:21]} 14. exf5 {[%emt 0:00:24]} d5 {[%emt 0:00:55]} 15. Nxd5 {[%emt 0:06:28]} cxd5 {[%emt 0:01:10]} 16. Bxd5 {[%emt 0:01:14]} Nc6 {[%emt 0:04:05]} 17. Bxc6 {[%emt 0:01:32]} Rac8 {[%emt 0:07:13]} 18. Bxb5 {[%emt 0:00:21]} Rxc2 {[%emt 0:00:17]} 19. Rab1 {[%emt 0:00:48]} Rfc8 {[%emt 0:01:01]} 20. Bc4 {[%emt 0:00:21]} e4 {[%emt 0:04:12]} 21. Qxe4 {[%emt 0:03:03]} Rxb2 {[%emt 0:00:24]} 22. Bxf7+ {[%emt 0:03:51]} Kxf7 {[%emt 0:05:06]} 23. Qe6+ {[%emt 0:00:18]} Qxe6 {[%emt 0:00:24]} 24. fxe6+ {[%emt 0:00:09]} Kxe6 {[%emt 0:00:12]} 25. Rxb2 {[%emt 0:00:14]} Bxe3+ {[%emt 0:00:12]} 26. Kh1 {[%emt 0:00:18]} Bb6 {[%emt 0:01:13]} 27. Rb3 {[%emt 0:03:04]} Kd5 {[%emt 0:01:11]} 28. h4 {[%emt 0:01:34]} Rc7 {[%emt 0:02:57]} 29. Kh2 {[%emt 0:00:43]} Kd4 {[%emt 0:00:26]} 30. Kg3 {[%emt 0:05:08]} Ke5 {[%emt 0:01:51]} 31. Rf4 {[%emt 0:07:36]} Ke6 {[%emt 0:02:39]} 32. Kf3 {[%emt 0:05:17]} Rd7 {[%emt 0:00:43]} 33. g4 {[%emt 0:04:12]} g6 {[%emt 0:00:52]} 34. g5 {[%emt 0:03:04]} hxg5 {[%emt 0:00:33]} 35. hxg5 {[%emt 0:00:06]} Rf7 {[%emt 0:01:33]} 36. Rxf7 {[%emt 0:00:54]} Kxf7 {[%emt 0:00:01]} 37. Ke4 {[%emt 0:00:32]} Ke6 {[%emt 0:00:02]} 38. d4 {[%emt 0:00:28]} Bd8 {[%emt 0:00:19]} 39. Rb5 {[%emt 0:00:54]} Kd6 {[%emt 0:00:22]} 40. Rd5+ {[%emt 0:00:50]} Ke7 {[%emt 0:00:01]} 41. Rxd8 {[%emt 0:30:31]} Kxd8 {[%emt 0:30:06]} 42. Kd5 {[%emt 0:00:04]} *

[Event "Nordic Chess-ch 2019"]
[Site "Sarpsborg"]
[Date "2019.06.26"]
[Round "8.40"]
[White "Andersen, Odd"]
[Black "Sather, Lars"]
[Result "*"]
[ECO "A43"]
[WhiteElo "1751"]
[BlackElo "1730"]
[Annotator "NA RC"]
[PlyCount "119"]
[EventDate "2019.06.21"]
[EventType "swiss"]
[EventCountry "NOR"]
[SourceTitle "playchess.com"]
[Source "ChessBase"]
[SourceQuality "1"]
[TimeControl "40/5400+30:1800+30"]

1. e4 {[%emt 0:00:00]} e6 {[%emt 0:00:00]} 2. d4 {[%emt 0:00:00]} c5 {[%emt 0:00:00]} 3. d5 {[%emt 0:00:00]} exd5 {[%emt 0:00:00]} 4. exd5 {[%emt 0:00:07]} d6 {[%emt 0:00:00]} 5. c4 {[%emt 0:00:31]} Nf6 {[%emt 0:00:14]} 6. Bg5 {[%emt 0:00:45]} Be7 {[%emt 0:00:14]} 7. Nf3 {[%emt 0:00:15]} h6 {[%emt 0:02:45]} 8. Bf4 {[%emt 0:00:47]} Qb6 {[%emt 0:03:00]} 9. Qc2 {[%emt 0:31:34]} O-O {[%emt 1:28:17]} 10. Bd3 {[%emt 1:01:01]} Nh5 {[%emt 0:00:00]} 11. Be3 {[%emt 0:00:00]} f5 {[%emt 0:00:00]} 12. Nc3 {[%emt 0:00:00]} f4 {[%emt 0:00:00]} 13. Bd2 {[%emt 0:00:00]} Bd7 {[%emt 0:00:00]} 14. O-O-O {[%emt 0:00:00]} Qd8 {[%emt 0:00:00]} 15. Bh7+ {[%emt 0:00:00]} Kh8 {[%emt 0:00:00]} 16. Bg6 {[%emt 0:00:00]} Be8 {[%emt 0:00:00]} 17. Rde1 {[%emt 0:00:00]} Na6 {[%emt 0:00:00]} 18. Re2 {[%emt 0:00:00]} Nb4 {[%emt 0:00:00]} 19. Qb1 {[%emt 0:00:00]} Rf6 {[%emt 0:00:00]} 20. Bxe8 {[%emt 0:00:00]} Qxe8 {[%emt 0:00:00]} 21. Rhe1 {[%emt 0:00:00]} Rf7 {[%emt 0:00:00]} 22. Nh4 {[%emt 0:00:00]} Rf6 {[%emt 0:00:00]} 23. Rxe7 {[%emt 0:00:00]} Qc8 {[%emt 0:00:00]} 24. Qe4 {[%emt 0:00:00]} Qg4 {[%emt 0:00:00]} 25. g3 {[%emt 0:00:00]} Rg8 {[%emt 0:00:00]} 26. Re8 {[%emt 0:00:00]} g5 {[%emt 0:00:00]} 27. Rxg8+ {[%emt 0:00:00]} Kxg8 {[%emt 0:00:00]} 28. Qe8+ {[%emt 0:00:00]} Kh7 {[%emt 0:00:00]} 29. Ng2 {[%emt 0:00:00]} Nd3+ {[%emt 0:00:00]} 30. Kc2 {[%emt 0:00:00]} Nxe1+ {[%emt 0:00:00]} 31. Nxe1 {[%emt 0:00:00]} fxg3 {[%emt 0:00:00]} 32. fxg3 {[%emt 0:00:00]} Rf2 {[%emt 0:00:00]} 33. Qe7+ {[%emt 0:00:00]} Ng7 {[%emt 0:00:00]} 34. Qe4+ {[%emt 0:00:00]} Qf5 {[%emt 0:00:00]} 35. h4 {[%emt 0:00:00]} gxh4 {[%emt 0:00:00]} 36. gxh4 {[%emt 0:00:00]} Kg6 {[%emt 0:00:00]} 37. Qxf5+ {[%emt 0:00:00]} Nxf5 {[%emt 0:00:00]} 38. Ne4 {[%emt 0:00:00]} Rh2 {[%emt 0:00:00]} 39. Nd3 {[%emt 0:00:00]} Rxh4 {[%emt 0:00:00]} 40. Bf4 {[%emt 0:00:00]} Nd4+ {[%emt 0:00:00]} 41. Kd2 {[%emt 0:06:04]} Rg4 {[%emt 0:32:51]} 42. Nef2 {[%emt 0:01:54]} Rh4 {[%emt 0:05:29]} 43. Bxd6 {[%emt 0:00:17]} b6 {[%emt 0:04:15]} 44. Bb8 {[%emt 0:00:20]} a6 {[%emt 0:03:34]} 45. Ba7 {[%emt 0:00:20]} b5 {[%emt 0:00:00]} 46. b3 {[%emt 0:00:00]} bxc4 {[%emt 0:00:00]} 47. bxc4 {[%emt 0:00:00]} Nf3+ {[%emt 0:00:00]} 48. Kc3 {[%emt 0:00:00]} Nd4 {[%emt 0:00:00]} 49. Bxc5 {[%emt 0:00:00]} Ne2+ {[%emt 0:00:00]} 50. Kb4 {[%emt 0:00:00]} a5+ {[%emt 0:00:00]} 51. Kxa5 {[%emt 0:00:00]} Kf5 {[%emt 0:00:00]} 52. Kb4 {[%emt 0:00:00]} Nf4 {[%emt 0:00:00]} 53. Nxf4 {[%emt 0:00:00]} Rxf4 {[%emt 0:00:00]} 54. Nd3 {[%emt 0:00:00]} Rf1 {[%emt 0:00:00]} 55. a4 {[%emt 0:00:00]} Rd1 {[%emt 0:00:00]} 56. Kc3 {[%emt 0:00:00]} Ra1 {[%emt 0:00:00]} 57. Nb2 {[%emt 0:00:00]} h5 {[%emt 0:00:00]} 58. Bd6 {[%emt 0:00:00]} Ke4 {[%emt 0:00:00]} 59. Bc7 {[%emt 0:00:00]} h4 {[%emt 0:00:00]} 60. d6 {[%emt 0:00:00]} *

[Event "Nordic Chess-ch 2019"]
[Site "Sarpsborg"]
[Date "2019.06.26"]
[Round "8.41"]
[White "Stubrud, Jan Magne"]
[Black "Lilleng, Gunnar"]
[Result "*"]
[ECO "A40"]
[WhiteElo "1681"]
[BlackElo "1485"]
[Annotator "NA RC"]
[PlyCount "91"]
[EventDate "2019.06.21"]
[EventType "swiss"]
[EventCountry "NOR"]
[SourceTitle "playchess.com"]
[Source "ChessBase"]
[SourceQuality "1"]
[TimeControl "40/5400+30:1800+30"]

1. d4 {[%emt 0:00:00]} c6 {[%emt 0:00:17]} 2. Bf4 {[%emt 0:00:00]} d6 {[%emt 0:00:57]} 3. Nf3 {[%emt 0:01:22]} Bg4 {[%emt 0:00:19]} 4. Nbd2 {[%emt 0:00:52]} Nf6 {[%emt 0:01:08]} 5. c3 {[%emt 0:03:09]} Nbd7 {[%emt 0:00:25]} 6. Qb3 {[%emt 0:02:29]} Qb6 {[%emt 0:00:21]} 7. e4 {[%emt 0:06:56]} Qxb3 {[%emt 0:00:30]} 8. axb3 {[%emt 0:00:14]} e6 {[%emt 0:01:19]} 9. Bd3 {[%emt 0:02:54]} d5 {[%emt 0:06:11]} 10. e5 {[%emt 0:04:13]} Ng8 {[%emt 0:00:08]} 11. O-O {[%emt 0:05:30]} Ne7 {[%emt 0:02:08]} 12. b4 {[%emt 0:01:48]} Bf5 {[%emt 0:10:45]} 13. Be2 {[%emt 0:04:57]} h6 {[%emt 0:02:45]} 14. Nb3 {[%emt 0:06:19]} g5 {[%emt 0:03:24]} 15. Be3 {[%emt 0:00:38]} Bg7 {[%emt 0:00:13]} 16. h3 {[%emt 0:08:13]} O-O {[%emt 0:02:38]} 17. Ne1 {[%emt 0:03:29]} b5 {[%emt 0:04:58]} 18. Nd3 {[%emt 0:03:14]} Nb6 {[%emt 0:02:55]} 19. Nbc5 {[%emt 0:05:04]} Bg6 {[%emt 0:05:37]} 20. b3 {[%emt 0:02:59]} Nf5 {[%emt 0:05:13]} 21. Bd2 {[%emt 0:01:00]} Ne7 {[%emt 0:01:31]} 22. f4 {[%emt 0:05:16]} gxf4 {[%emt 0:00:39]} 23. Nxf4 {[%emt 0:00:49]} Bc2 {[%emt 0:08:42]} 24. Ra2 {[%emt 0:01:34]} Bh7 {[%emt 0:00:16]} 25. Nh5 {[%emt 0:04:58]} Bg6 {[%emt 0:03:10]} 26. Bc1 {[%emt 0:04:37]} Nf5 {[%emt 0:02:03]} 27. g4 {[%emt 0:03:52]} Bxh5 {[%emt 0:01:06]} 28. gxf5 {[%emt 0:00:08]} Bxe2 {[%emt 0:00:18]} 29. Rxe2 {[%emt 0:00:20]} exf5 {[%emt 0:02:16]} 30. Rxf5 {[%emt 0:00:18]} Rae8 {[%emt 0:04:52]} 31. Ref2 {[%emt 0:01:27]} f6 {[%emt 0:03:15]} 32. e6 {[%emt 0:01:25]} Re7 {[%emt 0:00:58]} 33. Bf4 {[%emt 0:01:33]} Nc8 {[%emt 0:01:12]} 34. Re2 {[%emt 0:02:37]} Rfe8 {[%emt 0:04:02]} 35. Kf2 {[%emt 0:03:45]} Kh7 {[%emt 0:00:34]} 36. Kf3 {[%emt 0:01:05]} Rd8 {[%emt 0:08:29]} 37. Kg4 {[%emt 0:06:13]} Nd6 {[%emt 0:02:11]} 38. Bxd6 {[%emt 0:00:19]} Rxd6 {[%emt 0:00:09]} 39. Rf1 {[%emt 0:00:53]} Rd8 {[%emt 0:09:54]} 40. Kf5 {[%emt 0:00:20]} Ra8 {[%emt 0:01:03]} 41. Nd7 {[%emt 0:32:14]} a5 {[%emt 0:30:33]} 42. Ra1 {[%emt 0:00:00]} a4 {[%emt 0:00:00]} 43. bxa4 {[%emt 0:00:00]} bxa4 {[%emt 0:00:00]} 44. Ra3 {[%emt 0:00:00]} Bh8 {[%emt 0:00:00]} 45. Nxf6+ {[%emt 0:00:00]} Kg7 {[%emt 0:00:00]} 46. Rg2+ {[%emt 0:00:00]} *